bitfinex-derivatives/quotes_ETHF0:USTF0_20230830
["timestamp","ask_amount","ask_price","bid_price","bid_amount"]
[1693406677878,2.6422,1708.3,1708.1,12.83238176]
[1693406678576,2.6422,1708.3,1708.1,3.2078]
[1693406680874,8.191,1708.2,1707.9,3.2078]
[1693406682797,15.54770457,1708.3,1708.0,1.43358176]
[1693406682997,24.041,1708.3,1708.0,1.43358176]
[1693406683195,24.041,1708.3,1707.9,11.3988]
[1693406683390,1.90856754,1708.6,1708.5,3.0]
[1693406683696,3.7680172,1709.0,1708.5,12.83238176]
[1693406683897,2.5939,1709.1,1708.9,3.2078]
[1693406683898,2.0085,1709.1,1708.9,3.2078]
[1693406684092,2.0085,1709.1,1708.9,4.64138176]
[1693406684493,2.0085,1709.1,1709.0,8.191]
[1693406686298,2.0085,1709.1,1708.9,6.91131824]
[1693406686299,10.1995,1709.1,1708.9,3.2078]
[1693406686499,10.1995,1709.1,1708.7,3.2078]
[1693406686799,10.1995,1709.1,1708.7,11.3988]
[1693406687399,20.1995,1709.1,1708.7,11.3988]
[1693406687601,8.191,1708.9,1708.5,11.3988]
[1693406688295,8.191,1708.9,1708.7,3.2078]
[1693406691203,10.0,1708.7,1708.3,3.2078]
[1693406691401,18.191,1708.7,1708.3,3.2078]
[1693406691702,18.191,1708.7,1707.9,8.191]
[1693406691703,10.0,1708.3,1707.9,8.191]
[1693406691899,8.191,1708.1,1707.7,12.00096265]
[1693406692103,8.191,1708.1,1707.7,9.71498506]
[1693406692399,8.191,1708.1,1707.7,11.98492154]
[1693406693003,3.2078,1708.0,1707.7,9.71498506]
[1693406693199,8.191,1708.1,1707.8,1.43358176]
[1693406693902,3.2078,1708.0,1707.7,9.71498506]
[1693406694104,3.2078,1708.0,1707.8,1.43358176]
[1693406694300,8.191,1708.1,1707.8,1.43358176]
[1693406695707,8.191,1707.9,1707.7,1.52398506]
[1693406695898,8.191,1707.8,1707.6,3.80996265]
[1693406696099,8.191,1707.7,1707.4,1.52398506]
[1693406696298,3.2078,1707.8,1707.4,1.52398506]
[1693406696299,8.191,1707.6,1707.4,1.52398506]
[1693406697608,8.191,1707.6,1707.4,2.95756682]
[1693406698303,8.191,1707.6,1707.4,1.52398506]
[1693406698805,8.191,1707.6,1707.3,7.01776265]
[1693406699010,8.191,1707.4,1707.2,3.80996265]
[1693406699208,8.191,1707.4,1707.2,6.73881233]
[1693406699411,8.191,1707.4,1707.2,1.52398506]
[1693406699602,11.3988,1707.4,1707.2,1.52398506]
[1693406700203,11.3988,1707.4,1707.1,4.45292506]
[1693406700408,11.3988,1707.4,1707.1,1.52398506]
[1693406700607,11.3988,1707.4,1707.1,6.73902359]
[1693406701110,11.3988,1707.4,1707.2,1.52398506]
[1693406701808,8.191,1707.5,1707.2,5.24354441]
[1693406702009,11.3988,1707.7,1707.3,15.85152689]
[1693406702207,14.00650393,1707.9,1707.3,15.85152689]
[1693406702208,14.52232035,1707.9,1707.5,11.3988]
[1693406702413,14.52232035,1707.9,1707.6,2.26993648]
[1693406703413,2.3992,1707.8,1707.7,1.43358176]
[1693406703810,2.3992,1707.8,1707.6,2.26993648]
[1693406704009,2.3992,1707.8,1707.7,1.43358176]
[1693406704211,2.3992,1707.8,1707.5,1.52398506]
[1693406704412,10.5902,1707.8,1707.4,12.00096265]
[1693406704708,10.5902,1707.8,1707.4,14.27089913]
[1693406705113,10.5902,1707.8,1707.5,3.2078]
[1693406705414,10.5902,1707.8,1707.5,4.73178506]
[1693406706018,2.3992,1707.8,1707.6,9.62458176]
[1693406706414,10.5902,1707.8,1707.5,3.2078]
[1693406706612,8.191,1707.7,1707.3,12.92278506]
[1693406706912,8.191,1707.5,1707.2,2.28597759]
[1693406707113,2.5495,1707.4,1707.1,12.00096265]
[1693406707307,11.3988,1707.3,1707.1,1.52398506]
[1693406707512,8.191,1707.2,1707.0,1.52398506]
[1693406708719,8.191,1707.2,1706.9,3.80996265]
[1693406708909,8.191,1707.2,1706.9,1.52398506]
[1693406709317,21.3988,1707.0,1706.7,3.80996265]
[1693406709615,11.3988,1706.8,1706.7,3.80996265]
[1693406709812,11.3988,1706.8,1706.4,1.52398506]
[1693406710017,2.4619,1706.7,1706.4,14.91497862]
[1693406710218,2.4619,1706.7,1706.6,9.71498506]
[1693406710518,17.6051,1707.2,1706.6,13.40703467]
[1693406710718,8.191,1707.1,1706.8,3.2078]
[1693406711022,3.2078,1707.0,1706.6,16.6306287]
[1693406711211,3.2078,1707.0,1706.6,8.4396287]
[1693406711410,8.191,1706.9,1706.6,4.73611046]
[1693406711619,3.2078,1707.0,1706.7,1.43358176]
[1693406711818,8.191,1707.3,1706.9,3.2078]
[1693406712016,8.191,1707.4,1707.1,3.2078]
[1693406712210,8.191,1707.6,1707.2,11.89451824]
[1693406712410,16.0948,1707.7,1707.2,3.70351824]
[1693406712616,3.2078,1707.7,1707.2,16.59051824]
[1693406712810,0.47011386,1707.7,1707.3,3.2078]
[1693406713020,16.0948,1707.8,1707.4,2.26993648]
[1693406713021,15.97901386,1707.8,1707.4,2.26993648]
[1693406713314,16.96439578,1708.0,1707.5,3.2078]
[1693406713514,3.2078,1708.0,1707.6,15.15693648]
[1693406713721,3.2078,1708.0,1707.7,3.2078]
[1693406713918,3.2078,1708.0,1707.8,1.43358176]
[1693406714123,3.2078,1708.0,1707.8,3.70351824]
[1693406714619,16.0948,1708.0,1707.5,3.2078]
[1693406714917,22.887,1707.9,1707.5,3.2078]
[1693406715224,3.2078,1707.8,1707.3,12.887]
[1693406715410,12.887,1707.9,1707.4,5.47773648]
[1693406715612,16.0948,1708.0,1707.4,18.36473648]
[1693406716016,3.2078,1707.8,1707.4,5.47773648]
[1693406717018,2.545,1707.7,1707.4,5.47773648]
[1693406717215,2.545,1707.7,1707.5,1.43358176]
[1693406717821,2.545,1707.7,1707.6,5.47773648]
[1693406718918,2.545,1707.7,1707.6,18.36473648]
[1693406719124,0.46065393,1708.2,1707.6,18.36473648]
[1693406719423,2.4431,1708.3,1707.9,3.2078]
[1693406719424,2.3646,1708.3,1707.9,3.2078]
[1693406719716,12.887,1708.4,1708.0,2.26993648]
[1693406720016,16.55944278,1708.5,1708.0,2.26993648]
[1693406720213,0.46464278,1708.5,1708.2,12.887]
[1693406720411,19.11032157,1708.9,1708.4,12.887]
[1693406720412,13.2078,1708.9,1708.4,12.887]
[1693406720720,3.2078,1708.9,1708.5,3.2078]
[1693406721019,3.2078,1708.9,1708.6,2.26993648]
[1693406721215,15.97844742,1708.9,1708.6,2.26993648]
[1693406721417,16.0948,1708.7,1708.3,3.2078]
[1693406721818,16.0948,1708.7,1708.1,12.887]
[1693406721819,16.0948,1708.7,1708.1,16.0948]
[1693406722017,3.2078,1708.3,1707.9,16.0948]
[1693406722218,3.2078,1708.3,1707.8,12.887]
[1693406722615,3.2078,1708.1,1707.7,3.2078]
[1693406722825,12.887,1708.2,1707.7,5.47773648]
[1693406723118,3.2078,1708.1,1707.7,2.26993648]
[1693406723319,3.2078,1708.1,1707.6,12.887]
[1693406723519,16.0948,1708.1,1707.5,3.2078]
[1693406724320,16.0948,1707.9,1707.5,3.2078]
[1693406724516,10.0,1707.8,1707.3,16.0948]
[1693406724715,12.6013,1707.8,1707.3,16.0948]
[1693406724918,16.0948,1707.7,1707.3,3.2078]
[1693406726225,3.2078,1707.7,1707.3,3.2078]
[1693406727022,2.6013,1707.8,1707.5,3.2078]
[1693406727226,2.6013,1707.8,1707.6,14.32058176]
[1693406727522,3.2078,1708.2,1707.7,18.36473648]
[1693406728024,3.2078,1708.2,1707.9,3.2078]
[1693406728224,2.5049,1708.3,1708.0,1.43358176]
[1693406728631,13.2078,1708.6,1708.1,18.36473648]
[1693406728632,3.2078,1708.6,1708.1,18.36473648]
[1693406729232,3.01552157,1708.9,1708.3,3.2078]
[1693406729233,16.0948,1708.8,1708.3,3.2078]
[1693406729525,16.0948,1708.8,1708.4,2.26993648]
[1693406729721,3.2078,1708.9,1708.4,15.15693648]
[1693406730323,13.2078,1708.9,1708.4,15.15693648]
[1693406731033,3.2078,1708.9,1708.4,15.15693648]
[1693406731323,15.8125,1708.9,1708.4,15.15693648]
[1693406732131,2.6047,1708.9,1708.5,16.0948]
[1693406732323,0.00746231,1708.8,1708.7,12.887]
[1693406732827,0.00746231,1708.8,1708.7,15.15693648]
[1693406733019,0.00746231,1708.8,1708.7,19.79831824]
[1693406733221,2.6047,1708.9,1708.7,19.79831824]
[1693406733417,2.6047,1708.9,1708.7,16.59051824]
[1693406733617,2.6047,1708.9,1708.7,19.79831824]
[1693406734223,0.00743277,1708.8,1708.7,19.79831824]
[1693406735228,6.22332157,1709.4,1708.7,19.79831824]
[1693406735531,8.8558693,1709.5,1709.0,16.0948]
[1693406735728,5.84034773,1709.5,1709.1,2.26993648]
[1693406735928,6.30665495,1709.5,1709.1,2.26993648]
[1693406736128,16.0948,1709.4,1708.8,16.0948]
[1693406736329,26.10112038,1709.4,1708.8,16.0948]
[1693406737429,10.0,1709.2,1708.8,16.0948]
[1693406737630,10.0,1709.2,1708.8,18.36473648]
[1693406737834,26.10112038,1709.4,1709.0,3.2078]
[1693406738030,26.10112038,1709.4,1709.1,2.26993648]
[1693406738333,0.00632038,1709.4,1709.2,1.43358176]
[1693406738528,0.00632038,1709.4,1709.2,3.70351824]
[1693406738730,0.00632038,1709.4,1709.2,6.91131824]
[1693406739524,0.00632038,1709.4,1709.3,12.887]
[1693406741235,2.6033,1710.0,1709.4,3.70351824]
[1693406741540,3.9248,1710.0,1709.8,12.887]
[1693406741834,2.4845,1710.0,1709.9,19.79831824]
[1693406742028,2.4845,1710.0,1709.9,18.36473648]
[1693406742234,2.4845,1710.0,1709.9,19.79831824]
[1693406742538,2.4845,1710.0,1709.9,2.26993648]
[1693406743033,2.4845,1710.0,1709.9,6.91131824]
[1693406743242,2.49018196,1710.0,1709.9,6.91131824]
[1693406743924,2.49018196,1710.0,1709.9,19.79831824]
[1693406744129,2.25648186,1710.6,1709.9,19.79831824]
[1693406744333,2.4242,1710.4,1710.2,12.887]
[1693406744534,2.4242,1710.4,1710.3,3.70351824]
[1693406744945,2.4242,1710.4,1710.3,2.26993648]
[1693406745139,3.2078,1710.5,1710.1,16.0948]
[1693406745344,13.2078,1710.5,1710.1,12.887]
[1693406745644,12.4258,1710.5,1710.1,16.0948]
[1693406745839,2.4258,1710.5,1710.3,12.887]
[1693406746046,2.4258,1710.5,1710.4,14.32058176]
[1693406746234,2.4258,1710.5,1710.4,16.59051824]
[1693406746543,2.4258,1710.5,1710.3,16.0948]
[1693406746943,2.4258,1710.5,1710.3,16.59051824]
[1693406747239,2.4258,1710.5,1710.3,19.79831824]
[1693406747436,2.4258,1710.5,1710.3,16.59051824]
[1693406747842,2.4258,1710.5,1710.4,12.887]
[1693406748343,2.4258,1710.5,1710.3,6.91131824]
[1693406750049,2.4258,1710.5,1710.4,12.887]
[1693406750450,2.5436,1711.2,1710.4,20.54045359]
[1693406750652,1.9589,1711.2,1710.9,12.887]
[1693406750846,1.9589,1711.2,1711.0,3.70351824]
[1693406752349,0.00532103,1711.1,1711.0,3.70351824]
[1693406753646,0.00532103,1711.1,1711.0,16.59051824]
[1693406756252,0.00876628,1711.3,1711.0,24.04928882]
[1693406756448,0.00876628,1711.3,1711.2,16.0948]
[1693406756746,0.00876628,1711.3,1711.2,19.79831824]
[1693406757342,0.01375762,1711.3,1711.2,19.79831824]
[1693406759942,0.01375762,1711.3,1711.2,3.2078]
[1693406760147,0.01375762,1711.3,1711.0,16.0948]
[1693406760346,3.2078,1711.2,1710.9,0.00876628]
[1693406760548,5.6991,1711.2,1710.9,0.00876628]
[1693406761353,0.00495839,1711.1,1711.0,1.43358176]
[1693406761554,0.00495839,1711.1,1711.0,14.32058176]
[1693406762159,0.00495839,1711.1,1710.9,0.00876628]
[1693406762555,3.2078,1711.0,1710.9,0.00876628]
[1693406763055,26.0948,1711.0,1710.3,16.0948]
[1693406763360,26.09976645,1711.0,1710.3,16.0948]
[1693406763751,3.2078,1710.8,1710.3,16.0948]
[1693406763951,16.0948,1710.8,1710.3,3.2078]
[1693406764354,0.00496965,1710.7,1710.2,12.887]
[1693406764659,3.2078,1710.6,1710.1,12.887]
[1693406765251,3.2078,1710.4,1709.9,16.0948]
[1693406765454,16.0948,1710.4,1709.9,3.2078]
[1693406765855,12.887,1710.4,1709.9,3.2078]
[1693406766054,12.89192884,1710.5,1709.9,16.0948]
[1693406766250,0.00490125,1710.3,1710.2,12.887]
[1693406766456,0.00490125,1710.3,1710.2,14.32058176]
[1693406766652,0.00490125,1710.3,1710.2,1.43358176]
[1693406766848,0.00490125,1710.3,1710.1,12.887]
[1693406767047,0.00490125,1710.3,1710.2,1.43358176]
[1693406767253,3.2078,1710.4,1710.0,2.26993648]
[1693406767452,12.887,1710.5,1710.0,2.26993648]
[1693406767961,28.5062,1710.6,1710.1,3.2078]
[1693406768251,28.5062,1710.6,1710.0,15.15693648]
[1693406768252,0.00491864,1710.5,1710.2,12.887]
[1693406768653,3.2078,1710.4,1710.2,12.887]
[1693406769047,16.0948,1710.4,1709.8,12.887]
[1693406769360,0.00490125,1710.3,1709.8,16.0948]
[1693406769859,0.00490125,1710.3,1709.2,13.41416]
[1693406769860,16.0948,1710.2,1709.6,16.0948]
[1693406770249,0.00488922,1710.1,1709.6,16.0948]
[1693406771355,0.00488922,1710.1,1709.7,2.26993648]
[1693406771556,0.00488922,1710.1,1709.8,16.0948]
[1693406772161,0.00488922,1710.1,1709.8,12.887]
[1693406772363,18.6827,1710.2,1709.7,2.26993648]
[1693406773370,0.00488715,1710.1,1709.7,2.26993648]
[1693406773964,0.00488715,1710.1,1709.8,12.887]
[1693406774163,0.00488715,1710.1,1709.9,1.43358176]
[1693406774364,2.5879,1710.2,1709.9,1.43358176]
[1693406775068,5.7957,1710.2,1709.8,16.0948]
[1693406775365,0.00490508,1710.1,1709.8,16.0948]
[1693406775566,0.00490508,1710.1,1709.9,1.43358176]
[1693406775763,0.00490508,1710.1,1709.8,16.0948]
[1693406775969,3.2078,1710.0,1709.6,16.0948]
[1693406776368,0.0048814,1709.9,1709.6,16.0948]
[1693406777364,3.2078,1709.8,1709.3,16.0948]
[1693406778268,0.00485836,1709.7,1709.3,16.0948]
[1693406778969,0.00485836,1709.7,1709.3,18.36473648]
[1693406780365,2.51035836,1709.7,1709.3,18.36473648]
[1693406782377,2.51035836,1709.7,1709.3,12.887]
[1693406782770,3.2078,1709.6,1709.3,12.887]
[1693406783366,0.00484406,1709.5,1709.3,12.887]
[1693406783975,0.00484406,1709.5,1709.4,1.43358176]
[1693406784174,0.00484406,1709.5,1709.4,14.32058176]
[1693406784475,2.5055,1709.7,1709.4,16.59051824]
[1693406785275,0.0048608,1709.6,1709.3,16.0948]
[1693406785573,0.0048608,1709.6,1709.3,12.887]
[1693406786474,0.0048608,1709.6,1709.4,1.43358176]
[1693406787572,0.0048608,1709.6,1709.5,18.36473648]
[1693406790669,0.00877424,1709.7,1709.6,1.43358176]
[1693406790980,0.00877424,1709.7,1709.6,12.887]
[1693406791372,0.01344565,1709.7,1709.6,14.32058176]
[1693406798379,0.00877424,1709.7,1709.6,14.32058176]
[1693406799288,0.01346195,1709.7,1709.6,14.32058176]
[1693406799487,0.01346195,1709.7,1709.5,5.47773648]
[1693406799488,0.01346195,1709.7,1709.5,16.0948]
[1693406799785,0.01346195,1709.7,1709.4,12.887]
[1693406800285,16.0948,1709.6,1709.1,3.2078]
[1693406800683,16.0948,1709.6,1709.0,16.0948]
[1693406801287,0.0046571,1709.5,1709.0,16.0948]
[1693406801483,0.0046571,1709.5,1709.2,3.2078]
[1693406801778,0.0046571,1709.5,1709.3,1.43358176]
[1693406802389,0.0046571,1709.5,1709.3,3.70351824]
[1693406802590,0.0046571,1709.5,1709.3,16.59051824]
[1693406803487,3.2078,1709.4,1709.1,12.887]
[1693406803687,3.2078,1709.4,1709.0,12.887]
[1693406803881,2.5391,1709.3,1709.0,12.887]
[1693406804286,0.00463564,1709.2,1709.0,12.887]
[1693406804482,0.00463564,1709.2,1708.8,3.2078]
[1693406804483,13.21243564,1709.2,1708.8,3.2078]
[1693406804785,13.21243564,1709.2,1708.7,12.887]
[1693406806389,3.21243564,1709.2,1708.8,15.15693648]
[1693406806790,13.21243564,1709.2,1708.8,15.15693648]
[1693406807887,0.00463564,1709.2,1708.8,15.15693648]
[1693406808083,0.00463564,1709.2,1709.1,12.887]
[1693406808283,0.00463564,1709.2,1709.1,16.59051824]
[1693406809991,0.00463564,1709.2,1709.1,24.04890266]
[1693406810391,1.50906734,1709.5,1709.1,24.04890266]
[1693406810693,1.50906734,1709.5,1709.2,3.2078]
[1693406810992,5.59930171,1709.7,1709.4,16.0948]
[1693406810993,6.36183718,1709.7,1709.4,16.0948]
[1693406811196,6.36183718,1709.7,1709.5,12.887]
[1693406811392,4.12224158,1709.7,1709.6,3.70351824]
[1693406811594,6.36183718,1709.7,1709.6,3.70351824]
[1693406811794,4.85276984,1709.7,1709.6,3.70351824]
[1693406812095,4.59700961,1709.7,1709.6,2.26993648]
[1693406812691,4.59700961,1709.7,1709.6,3.70351824]
[1693406813292,2.61317424,1709.7,1709.6,19.79831824]
[1693406814292,0.03844584,1709.7,1709.6,19.79831824]
[1693406814491,1.35140675,1709.9,1709.6,19.79831824]
[1693406814693,1.35140675,1709.9,1709.8,12.887]
[1693406814888,1.35140675,1709.9,1709.8,16.59051824]
[1693406815095,4.7398956,1710.1,1709.8,19.79831824]
[1693406815298,2.5003,1710.1,1710.0,3.2078]
[1693406815498,5.48642747,1710.1,1710.0,2.26993648]
[1693406815897,4.77176502,1710.1,1710.0,6.91131824]
[1693406816099,4.77176502,1710.1,1710.0,19.79831824]
[1693406816298,2.5003,1710.1,1710.0,19.79831824]
[1693406818996,4.77176502,1710.1,1710.0,19.79831824]
[1693406822103,2.5003,1710.1,1710.0,6.91131824]
[1693406822297,4.77628535,1710.1,1710.0,15.09931824]
[1693406823002,13.6789478,1710.1,1709.9,0.00877167]
[1693406823202,2.26996515,1710.0,1709.9,0.00877167]
[1693406823400,2.98612747,1710.0,1709.9,0.00877167]
[1693406824403,2.99064065,1710.0,1709.9,0.00877167]
[1693406826703,2.99064065,1710.0,1709.6,8.188]
[1693406827003,2.27131838,1709.8,1709.6,8.188]
[1693406827203,2.27131838,1709.8,1709.5,13.66573648]
[1693406827402,0.00449173,1709.7,1709.5,13.66573648]
[1693406827898,0.00449173,1709.7,1709.6,1.43358176]
[1693406829196,0.00449173,1709.7,1709.5,11.3958]
[1693406829403,10.45931838,1709.6,1709.3,3.2078]
[1693406829704,10.45931838,1709.6,1709.1,3.2078]
[1693406829705,8.188,1709.4,1709.1,3.2078]
[1693406830209,10.45931838,1709.4,1709.1,3.2078]
[1693406830403,0.00447637,1709.3,1709.1,3.2078]
[1693406831210,0.00447637,1709.3,1709.1,4.64138176]
[1693406831402,10.45931838,1709.4,1709.1,4.64138176]
[1693406831603,5.47911838,1709.5,1709.3,8.188]
[1693406831805,5.47911838,1709.5,1709.4,1.43358176]
[1693406832004,2.27131838,1709.5,1709.4,1.43358176]
[1693406832209,4.71311838,1709.6,1709.4,1.43358176]
[1693406832411,0.00447743,1709.5,1709.4,1.43358176]
[1693406832709,0.00447743,1709.5,1709.4,6.91131824]
[1693406834208,0.00447743,1709.5,1709.4,3.70351824]
[1693406834412,0.00447743,1709.5,1709.4,6.91131824]
[1693406835307,0.00447743,1709.5,1709.4,15.09931824]
[1693406836407,4.88471838,1709.7,1709.4,15.09931824]
[1693406837309,0.00448458,1709.6,1709.4,15.09931824]
[1693406837706,2.27580296,1709.6,1709.3,8.19677474]
[1693406837904,2.27580296,1709.6,1709.3,10.46671122]
[1693406838609,0.00448458,1709.6,1709.4,4.64138176]
[1693406838811,0.00448458,1709.6,1709.5,2.26993648]
[1693406841914,0.00448458,1709.6,1709.4,4.64138176]
[1693406843616,2.27545475,1709.6,1709.4,3.2078]
[1693406845014,3.2078,1709.5,1709.3,0.00877474]
[1693406845216,10.45897017,1709.4,1708.8,11.3958]
[1693406845414,11.3958,1709.1,1708.7,8.188]
[1693406845613,8.188,1709.0,1708.6,3.2078]
[1693406845815,8.188,1709.0,1708.5,8.188]
[1693406846016,2.4745,1708.9,1708.5,8.188]
[1693406846319,0.00442734,1708.8,1708.6,3.2078]
[1693406846518,0.00442734,1708.8,1708.6,4.64138176]
[1693406847410,2.48327859,1708.9,1708.6,4.64138176]
[1693406848420,0.00442734,1708.8,1708.6,4.64138176]
[1693406848720,0.00442734,1708.8,1708.6,3.2078]
[1693406849314,2.48327859,1708.9,1708.6,3.2078]
[1693406850518,0.00442734,1708.8,1708.6,3.2078]
[1693406851420,2.48327859,1708.9,1708.6,4.64138176]
[1693406851817,2.48327859,1708.9,1708.6,3.2078]
[1693406852022,11.3958,1708.8,1708.4,11.3958]
[1693406852217,3.2078,1708.6,1708.2,9.71708959]
[1693406852418,8.188,1708.5,1708.1,1.52908959]
[1693406852819,2.6028,1708.4,1708.1,1.52908959]
[1693406853220,2.6028,1708.4,1708.0,12.92488959]
[1693406853524,0.00439153,1708.3,1708.0,12.92488959]
[1693406853726,0.00439153,1708.3,1708.2,3.2078]
[1693406854824,0.00439153,1708.3,1708.2,11.3958]
[1693406855424,0.00439153,1708.3,1708.2,13.66573648]
[1693406861842,0.00439153,1708.3,1708.0,2.00271462]
[1693406861843,0.00439153,1708.3,1708.0,8.66162503]
[1693406862036,8.19239153,1708.3,1708.0,0.47362503]
[1693406862238,8.19239153,1708.3,1707.9,8.188]
[1693406862446,11.40019153,1708.3,1707.9,8.188]
[1693406862632,11.40019153,1708.3,1707.8,3.2078]
[1693406862837,8.188,1708.2,1707.8,3.2078]
[1693406863040,8.188,1708.2,1707.7,8.188]
[1693406863240,8.188,1708.2,1707.6,4.73688959]
[1693406863241,8.188,1708.0,1707.6,11.3958]
[1693406863641,2.4199,1707.9,1707.6,11.3958]
[1693406863838,5.6277,1707.9,1707.6,8.188]
[1693406864139,2.4199,1707.9,1707.6,11.3958]
[1693406864345,0.00435571,1707.8,1707.6,11.3958]
[1693406865036,0.00435571,1707.8,1707.6,12.82938176]
[1693406866339,2.4199,1707.9,1707.6,11.3958]
[1693406866943,8.188,1707.8,1707.4,11.85419848]
[1693406867442,0.00434854,1707.7,1707.4,11.85419848]
[1693406868737,0.00434854,1707.7,1707.5,1.43358176]
[1693406869335,0.01313306,1707.7,1707.5,1.43358176]
[1693406869941,0.01313306,1707.7,1707.4,14.12413496]
[1693406870340,0.01313306,1707.7,1707.4,11.85419848]
[1693406871948,8.20113306,1707.7,1707.4,3.66619848]
[1693406872349,11.40893306,1707.7,1707.4,3.66619848]
[1693406872741,0.01313306,1707.7,1707.6,11.3958]
[1693406872939,0.01313306,1707.7,1707.6,8.188]
[1693406873139,0.01313306,1707.7,1707.5,9.62158176]
[1693406873341,0.01313306,1707.7,1707.5,8.188]
[1693406874348,0.01313306,1707.7,1707.5,9.62158176]
[1693406874552,0.01313306,1707.7,1707.5,8.188]
[1693406874952,0.01313306,1707.7,1707.4,11.85419848]
[1693406875448,0.01313306,1707.7,1707.5,1.43358176]
[1693406875649,0.01313306,1707.7,1707.4,11.85419848]
[1693406875847,0.01313306,1707.7,1707.4,11.3958]
[1693406875848,13.22093306,1707.7,1707.4,11.3958]
[1693406876047,13.22093306,1707.7,1707.4,8.188]
[1693406876849,13.22093306,1707.7,1707.2,3.2078]
[1693406876850,8.188,1707.6,1707.2,11.3958]
[1693406877050,8.188,1707.6,1707.2,11.86872047]
[1693406877253,2.4262342,1707.5,1707.2,11.86872047]
[1693406879954,8.188,1707.4,1707.0,11.3958]
[1693406880356,0.00431986,1707.3,1707.0,11.3958]
[1693406880560,0.00431986,1707.3,1707.0,13.66573648]
[1693406880762,0.00431986,1707.3,1707.1,1.43358176]
[1693406881459,8.188,1707.4,1707.1,1.43358176]
[1693406881650,8.188,1707.4,1707.0,13.66573648]
[1693406882262,0.00431986,1707.3,1707.0,13.66573648]
[1693406882466,0.00431986,1707.3,1707.2,3.2078]
[1693406882756,4.073e-05,1707.3,1707.2,13.66573648]
[1693406883359,2.4219,1707.5,1707.2,13.66573648]
[1693406883662,2.4219,1707.5,1707.4,3.2078]
[1693406883863,2.4219,1707.5,1707.4,5.47773648]
[1693406884266,2.42606962,1707.5,1707.4,5.47773648]
[1693406884664,0.00878452,1707.7,1707.4,13.66573648]
[1693406884965,5.8508,1708.1,1707.6,11.3958]
[1693406885163,5.8508,1708.1,1707.8,8.188]
[1693406885367,0.00405117,1708.0,1707.8,8.188]
[1693406885565,0.00405117,1708.0,1707.8,9.62158176]
[1693406886261,0.00405117,1708.0,1707.8,8.188]
[1693406886856,0.00405117,1708.0,1707.8,9.62158176]
[1693406887458,0.00405117,1708.0,1707.8,12.82938176]
[1693406887664,0.00405117,1708.0,1707.9,2.26993648]
[1693406888161,0.00405117,1708.0,1707.8,3.2078]
[1693406888162,8.19205117,1708.0,1707.8,3.2078]
[1693406888461,8.19205117,1708.0,1707.6,3.2078]
[1693406888668,8.19205117,1708.0,1707.6,5.47773648]
[1693406889766,8.20083439,1708.0,1707.6,5.47773648]
[1693406890664,8.20083439,1708.0,1707.6,3.2078]
[1693406890862,8.20083439,1708.0,1707.4,12.91713958]
[1693406890863,8.188,1707.8,1707.4,12.91713958]
[1693406891065,8.188,1707.8,1707.4,11.3958]
[1693406891263,2.573,1707.7,1707.4,8.188]
[1693406891564,2.57702359,1707.7,1707.4,8.188]
[1693406891866,10.76502359,1707.7,1707.3,9.70933958]
[1693406892267,13.97282359,1707.7,1707.3,8.188]
[1693406893170,13.97282359,1707.7,1707.3,9.70933958]
[1693406893367,13.97282359,1707.7,1707.3,11.97927606]
[1693406893970,5.78482359,1707.7,1707.4,8.188]
[1693406894264,5.78482359,1707.7,1707.5,3.70351824]
[1693406894766,2.57702359,1707.7,1707.5,3.70351824]
[1693406895273,0.47994489,1708.0,1707.6,12.91713958]
[1693406895571,0.47994489,1708.0,1707.9,8.188]
[1693406895867,0.47994489,1708.0,1707.9,11.89151824]
[1693406896263,0.00878322,1708.0,1707.9,11.89151824]
[1693406896661,11.3958,1708.4,1707.9,11.89151824]
[1693406896859,11.86959054,1708.4,1708.0,11.3958]
[1693406897059,11.86959054,1708.4,1708.1,2.26993648]
[1693406897258,11.86959054,1708.4,1708.2,1.43358176]
[1693406897662,11.86959054,1708.4,1708.3,2.26993648]
[1693406898065,0.47379054,1708.4,1708.3,2.26993648]
[1693406898266,8.188,1708.6,1708.3,2.26993648]
[1693406898469,8.188,1708.6,1708.4,1.43358176]
[1693406898871,2.4125,1708.7,1708.4,9.62158176]
[1693406899071,2.4125,1708.7,1708.5,2.26993648]
[1693406899268,2.4125,1708.7,1708.6,1.43358176]
[1693406899668,2.88422915,1708.7,1708.6,1.43358176]
[1693406899966,0.47172915,1708.7,1708.6,4.64138176]
[1693406900266,10.6289,1709.0,1708.6,12.82938176]
[1693406900461,8.188,1708.9,1708.7,2.26993648]
[1693406900866,2.4409,1709.0,1708.7,2.26993648]
[1693406901072,8.188,1709.1,1708.8,1.43358176]
[1693406901272,8.188,1709.1,1708.9,2.26993648]
[1693406901567,8.188,1709.1,1709.0,1.43358176]
[1693406901768,8.188,1709.1,1708.9,2.26993648]
[1693406901962,0.47357759,1709.2,1709.0,1.43358176]
[1693406902168,13.2379,1709.3,1709.0,6.91131824]
[1693406903376,0.00397381,1709.2,1709.0,6.91131824]
[1693406903780,0.00397381,1709.2,1709.0,15.09931824]
[1693406907269,0.00397381,1709.2,1708.7,11.3958]
[1693406907270,8.188,1709.1,1708.7,11.3958]
[1693406907477,8.188,1708.9,1708.7,3.2078]
[1693406907774,8.188,1708.9,1708.7,4.64138176]
[1693406908277,0.00394518,1708.8,1708.7,4.64138176]
[1693406908779,0.00394518,1708.8,1708.7,12.82938176]
[1693406909478,10.7198,1709.2,1708.7,12.82938176]
[1693406909778,10.7198,1709.2,1708.9,3.2078]
[1693406910375,0.00396666,1709.1,1708.8,2.26993648]
[1693406911179,0.00396666,1709.1,1708.9,1.43358176]
[1693406911876,8.19196666,1709.1,1708.9,4.64138176]
[1693406912479,0.00396666,1709.1,1709.0,2.26993648]
[1693406912782,0.00396666,1709.1,1709.0,10.45793648]
[1693406915184,0.00396666,1709.1,1708.8,8.188]
[1693406915390,0.00396666,1709.1,1708.9,1.43358176]
[1693406915891,0.00396666,1709.1,1708.9,4.64138176]
[1693406916284,0.00396666,1709.1,1709.0,10.45793648]
[1693406917784,0.00396666,1709.1,1708.9,3.2078]
[1693406917982,8.19196666,1709.1,1708.9,3.2078]
[1693406919086,18.188,1709.0,1708.5,11.3958]